[Event "FIDE CB Open 2022"]
[Site "Ceske Budejovice"]
[Date "2022.07.04"]
[Round "4.47"]
[White "Zednicek, Filip"]
[Black "Holub, Adam"]
[Result "0-1"]
[ECO "C56"]
[WhiteElo "1688"]
[BlackElo "1817"]
[Annotator "NA RC"]
[PlyCount "88"]
[EventDate "2022.07.01"]
[EventType "swiss"]
[EventCountry "CZE"]
[SourceTitle "playchess.com"]
[Source "ChessBase"]
[SourceQuality "1"]
[TimeControl "40/5400+30:1800+30"]

1. e4 {[%emt 0:01:45]} e5 {[%emt 0:00:19]} 2. Nf3 {[%emt 0:00:17]} Nc6 {[%emt 0:01:09]} 3. d4 {[%emt 0:00:36]} exd4 {[%emt 0:01:14]} 4. Bc4 {[%emt 0:01:09]} Nf6 {[%emt 0:01:17]} 5. e5 {[%emt 0:03:41]} d5 {[%emt 0:00:30]} 6. Bb5 {[%emt 0:00:05]} Ne4 {[%emt 0:00:26]} 7. Nxd4 {[%emt 0:00:09]} Bc5 {[%emt 0:00:46]} 8. O-O {[%emt 0:00:24]} O-O {[%emt 0:12:26]} 9. Bxc6 {[%emt 0:01:57]} bxc6 {[%emt 0:04:11]} 10. f3 {[%emt 0:02:16]} Ng5 {[%emt 0:04:17]} 11. f4 {[%emt 0:00:10]} Ne4 {[%emt 0:02:47]} 12. Be3 {[%emt 0:01:25]} Bb6 {[%emt 0:05:31]} 13. Nc3 {[%emt 0:03:04]} c5 {[%emt 0:07:45]} 14. Nb3 {[%emt 0:06:45]} Nxc3 {[%emt 0:03:55]} 15. bxc3 {[%emt 0:00:42]} c4 {[%emt 0:04:33]} 16. Nd4 {[%emt 0:01:42]} Qe7 {[%emt 0:04:12]} 17. Qd2 {[%emt 0:05:28]} Bd7 {[%emt 0:06:13]} 18. Rae1 {[%emt 0:06:55]} Rad8 {[%emt 0:01:40]} 19. f5 {[%emt 0:01:38]} c5 {[%emt 0:11:40]} 20. Bg5 {[%emt 0:01:14]} cxd4 {[%emt 0:05:47]} 21. Bxe7 {[%emt 0:01:18]} dxc3+ {[%emt 0:00:10]} 22. Qf2 {[%emt 0:00:05]} Bxf2+ {[%emt 0:00:41]} 23. Rxf2 {[%emt 0:00:06]} Ba4 {[%emt 0:06:20]} 24. Bxf8 {[%emt 0:01:01]} Kxf8 {[%emt 0:01:15]} 25. e6 {[%emt 0:00:39]} Ke7 {[%emt 0:00:45]} 26. exf7+ {[%emt 0:00:31]} Kxf7 {[%emt 0:00:02]} 27. Rb1 {[%emt 0:49:35]} d4 {[%emt 0:02:43]} 28. Rb4 {[%emt 0:00:18]} d3 {[%emt 0:01:17]} 29. Rxa4 {[%emt 0:00:58]} d2 {[%emt 0:09:41]} 30. Rxa7+ {[%emt 0:00:18]} Kf6 {[%emt 0:00:38]} 31. Rf1 {[%emt 0:01:33]} d1=Q {[%emt 0:00:51]} 32. Rxd1 {[%emt 0:00:10]} Rxd1+ {[%emt 0:00:05]} 33. Kf2 {[%emt 0:00:02]} Rd2+ {[%emt 0:01:05]} 34. Kf3 {[%emt 0:00:08]} Rxc2 {[%emt 0:00:32]} 35. Rc7 {[%emt 0:00:11]} Rxa2 {[%emt 0:00:40]} 36. Rxc4 {[%emt 0:00:10]} Rc2 {[%emt 0:00:30]} 37. g4 {[%emt 0:01:09]} Rxh2 {[%emt 0:00:26]} 38. Kf4 {[%emt 0:01:02]} Rc2 {[%emt 0:00:39]} 39. g5+ {[%emt 0:03:21]} Ke7 {[%emt 0:00:27]} 40. Ke3 {[%emt 0:00:20]} Rc1 {[%emt 0:00:33]} 41. Rc7+ {[%emt 0:30:32]} Kd6 {[%emt 0:05:59]} 42. Rxg7 {[%emt 0:00:00]} Rd1 {[%emt 0:02:05]} 43. Rxh7 {[%emt 0:00:00]} c2 {[%emt 0:00:42]} 44. Rh6+ {[%emt 0:00:00]} Kd5 {[%emt 0:00:42]} 0-1

[Event "FIDE CB Open 2022"]
[Site "Ceske Budejovice"]
[Date "2022.07.04"]
[Round "4.48"]
[White "Rybacek, Martin"]
[Black "Steinbauer, Sebastian"]
[Result "0-1"]
[ECO "B33"]
[WhiteElo "1650"]
[BlackElo "1808"]
[Annotator "NA RC"]
[PlyCount "56"]
[EventDate "2022.07.01"]
[EventType "swiss"]
[EventCountry "CZE"]
[SourceTitle "playchess.com"]
[Source "ChessBase"]
[SourceQuality "1"]
[TimeControl "40/5400+30:1800+30"]

1. d4 {[%emt 0:00:11]} c5 {[%emt 0:00:11]} 2. Nf3 {[%emt 0:01:02]} cxd4 {[%emt 0:00:07]} 3. Nxd4 {[%emt 0:01:04]} e5 {[%emt 0:00:08]} 4. Nf3 {[%emt 0:02:57]} Nc6 {[%emt 0:00:07]} 5. e4 {[%emt 0:01:07]} Nf6 {[%emt 0:00:09]} 6. Nc3 {[%emt 0:01:03]} Bc5 {[%emt 0:00:37]} 7. Bg5 {[%emt 0:01:53]} Qb6 {[%emt 0:00:33]} 8. Be3 {[%emt 0:22:39]} Bxe3 {[%emt 0:01:53]} 9. fxe3 {[%emt 0:00:15]} Qxb2 {[%emt 0:00:13]} 10. Nb5 {[%emt 0:03:19]} O-O {[%emt 0:00:37]} 11. Bd3 {[%emt 0:03:18]} Qb4+ {[%emt 0:03:09]} 12. Qd2 {[%emt 0:03:06]} Qxd2+ {[%emt 0:01:31]} 13. Kxd2 {[%emt 0:00:33]} Ne8 {[%emt 0:04:04]} 14. Bc4 {[%emt 0:02:19]} a6 {[%emt 0:00:30]} 15. Nc3 {[%emt 0:00:16]} Nd6 {[%emt 0:01:27]} 16. Bd5 {[%emt 0:01:26]} Re8 {[%emt 0:01:57]} 17. Rhf1 {[%emt 0:01:43]} h6 {[%emt 0:06:19]} 18. Nh4 {[%emt 0:02:19]} Ne7 {[%emt 0:02:21]} 19. Bb3 {[%emt 0:00:37]} b5 {[%emt 0:00:48]} 20. Rf2 {[%emt 0:02:48]} b4 {[%emt 0:01:15]} 21. Nd5 {[%emt 0:01:11]} Nxe4+ {[%emt 0:00:14]} 22. Ke2 {[%emt 0:00:17]} Nxd5 {[%emt 0:00:16]} 23. Bxd5 {[%emt 0:00:44]} Nc3+ {[%emt 0:00:11]} 24. Kd3 {[%emt 0:01:09]} Nxd5 {[%emt 0:00:14]} 25. Raf1 {[%emt 0:00:37]} f6 {[%emt 0:00:54]} 26. Nf5 {[%emt 0:00:50]} d6 {[%emt 0:00:20]} 27. Nxd6 {[%emt 0:00:35]} Rd8 {[%emt 0:00:07]} 28. Rd2 {[%emt 0:04:28]} Rxd6 {[%emt 0:00:28]} 0-1

[Event "FIDE CB Open 2022"]
[Site "Ceske Budejovice"]
[Date "2022.07.04"]
[Round "4.49"]
[White "Pisar, Tomas"]
[Black "Petirova, Iva"]
[Result "0-1"]
[ECO "A62"]
[WhiteElo "1640"]
[BlackElo "1722"]
[Annotator "NA RC"]
[PlyCount "80"]
[EventDate "2022.07.01"]
[EventType "swiss"]
[EventCountry "CZE"]
[SourceTitle "playchess.com"]
[Source "ChessBase"]
[SourceQuality "1"]
[TimeControl "40/5400+30:1800+30"]

1. d4 {[%emt 0:00:04]} Nf6 {[%emt 0:00:08]} 2. c4 {[%emt 0:00:14]} c5 {[%emt 0:00:15]} 3. d5 {[%emt 0:00:08]} e6 {[%emt 0:00:24]} 4. Nc3 {[%emt 0:00:05]} g6 {[%emt 0:00:33]} 5. Nf3 {[%emt 0:00:24]} Bg7 {[%emt 0:00:42]} 6. g3 {[%emt 0:00:05]} O-O {[%emt 0:00:40]} 7. Bg2 {[%emt 0:00:04]} exd5 {[%emt 0:02:07]} 8. cxd5 {[%emt 0:00:08]} d6 {[%emt 0:00:13]} 9. O-O {[%emt 0:00:06]} Re8 {[%emt 0:00:59]} 10. Nd2 {[%emt 0:00:18]} Bd7 {[%emt 0:02:33]} 11. Nc4 {[%emt 0:02:42]} Bf5 {[%emt 0:05:48]} 12. Bf4 {[%emt 0:00:56]} Qd7 {[%emt 0:05:53]} 13. Nxd6 {[%emt 0:01:02]} Bh3 {[%emt 0:00:10]} 14. Nxe8 {[%emt 0:00:34]} Nxe8 {[%emt 0:00:05]} 15. Qa4 {[%emt 0:02:24]} Qxa4 {[%emt 0:00:31]} 16. Nxa4 {[%emt 0:00:06]} Bxg2 {[%emt 0:00:07]} 17. Kxg2 {[%emt 0:00:03]} Nd7 {[%emt 0:00:17]} 18. Rac1 {[%emt 0:03:08]} Rc8 {[%emt 0:01:22]} 19. b3 {[%emt 0:01:40]} Nef6 {[%emt 0:00:49]} 20. Rfd1 {[%emt 0:01:14]} a6 {[%emt 0:03:08]} 21. Nxc5 {[%emt 0:01:47]} Rxc5 {[%emt 0:01:23]} 22. Rxc5 {[%emt 0:00:18]} Nxc5 {[%emt 0:00:04]} 23. d6 {[%emt 0:00:03]} Nfd7 {[%emt 0:02:34]} 24. b4 {[%emt 0:05:53]} Ne6 {[%emt 0:01:01]} 25. a4 {[%emt 0:00:13]} f5 {[%emt 0:03:55]} 26. b5 {[%emt 0:03:04]} axb5 {[%emt 0:00:41]} 27. axb5 {[%emt 0:00:05]} Nxf4+ {[%emt 0:02:26]} 28. gxf4 {[%emt 0:00:04]} Kf7 {[%emt 0:00:08]} 29. f3 {[%emt 0:00:14]} Ke6 {[%emt 0:01:18]} 30. e4 {[%emt 0:00:52]} fxe4 {[%emt 0:07:33]} 31. fxe4 {[%emt 0:00:06]} Bf8 {[%emt 0:01:20]} 32. e5 {[%emt 0:01:13]} Bh6 {[%emt 0:00:06]} 33. Kf3 {[%emt 0:00:23]} g5 {[%emt 0:01:08]} 34. fxg5 {[%emt 0:00:54]} Bxg5 {[%emt 0:00:07]} 35. Ke4 {[%emt 0:00:53]} Nxe5 {[%emt 0:04:16]} 36. Rd5 {[%emt 0:01:30]} Bf6 {[%emt 0:00:08]} 37. h3 {[%emt 0:02:27]} h6 {[%emt 0:03:06]} 38. Rd1 {[%emt 0:05:24]} Bg5 {[%emt 0:08:04]} 39. Ra1 {[%emt 0:02:05]} Kxd6 {[%emt 0:08:10]} 40. Ra8 {[%emt 0:01:04]} Nd7 {[%emt 0:01:27]} 0-1

[Event "FIDE CB Open 2022"]
[Site "Ceske Budejovice"]
[Date "2022.07.04"]
[Round "4.50"]
[White "Schmied, Eva-Maria"]
[Black "Jilek, Marcel"]
[Result "1/2-1/2"]
[ECO "B01"]
[WhiteElo "1718"]
[BlackElo "1565"]
[Annotator "NA RC"]
[PlyCount "55"]
[EventDate "2022.07.01"]
[EventType "swiss"]
[EventCountry "CZE"]
[SourceTitle "playchess.com"]
[Source "ChessBase"]
[SourceQuality "1"]
[TimeControl "40/5400+30:1800+30"]

1. e4 {[%emt 0:00:03]} d5 {[%emt 0:00:23]} 2. exd5 {[%emt 0:00:05]} Nf6 {[%emt 0:00:06]} 3. d4 {[%emt 0:00:29]} Nxd5 {[%emt 0:00:07]} 4. Nf3 {[%emt 0:00:12]} Bg4 {[%emt 0:00:16]} 5. Be2 {[%emt 0:00:10]} e6 {[%emt 0:00:13]} 6. O-O {[%emt 0:00:59]} Bd6 {[%emt 0:02:15]} 7. Bg5 {[%emt 0:06:25]} f6 {[%emt 0:10:50]} 8. Bh4 {[%emt 0:01:49]} g5 {[%emt 0:06:04]} 9. Bg3 {[%emt 0:01:55]} Bxg3 {[%emt 0:00:19]} 10. fxg3 {[%emt 0:00:05]} Ne3 {[%emt 0:00:34]} 11. Qd3 {[%emt 0:01:03]} Nxf1 {[%emt 0:00:22]} 12. Qb5+ {[%emt 0:02:31]} Nc6 {[%emt 0:11:51]} 13. Kxf1 {[%emt 0:00:59]} Qc8 {[%emt 0:04:07]} 14. c4 {[%emt 0:03:39]} a6 {[%emt 0:01:46]} 15. Qa4 {[%emt 0:02:01]} Qd7 {[%emt 0:04:49]} 16. Nbd2 {[%emt 0:03:37]} O-O-O {[%emt 0:00:45]} 17. Ne4 {[%emt 0:14:32]} Nxd4 {[%emt 0:08:11]} 18. Qxd7+ {[%emt 0:01:54]} Rxd7 {[%emt 0:00:12]} 19. Nxf6 {[%emt 0:01:35]} Bxf3 {[%emt 0:00:10]} 20. gxf3 {[%emt 0:00:24]} Rf7 {[%emt 0:00:26]} 21. Ne4 {[%emt 0:00:21]} Nxf3 {[%emt 0:01:29]} 22. Kg2 {[%emt 0:00:33]} Nd4 {[%emt 0:00:37]} 23. Bg4 {[%emt 0:00:29]} h6 {[%emt 0:01:14]} 24. Rd1 {[%emt 0:01:25]} Nf5 {[%emt 0:00:12]} 25. Re1 {[%emt 0:00:31]} Kd8 {[%emt 0:02:06]} 26. Nc5 {[%emt 0:00:13]} h5 {[%emt 0:02:35]} 27. Nxe6+ {[%emt 0:01:17]} Kc8 {[%emt 0:00:37]} 28. Nxg5 {[%emt 0:01:08]} 1/2-1/2

[Event "FIDE CB Open 2022"]
[Site "Ceske Budejovice"]
[Date "2022.07.04"]
[Round "4.51"]
[White "Svejda, Karel"]
[Black "Rybackova, Lucie"]
[Result "1/2-1/2"]
[ECO "D03"]
[WhiteElo "1619"]
[BlackElo "1696"]
[Annotator "NA RC"]
[PlyCount "77"]
[EventDate "2022.07.01"]
[EventType "swiss"]
[EventCountry "CZE"]
[SourceTitle "playchess.com"]
[Source "ChessBase"]
[SourceQuality "1"]
[TimeControl "40/5400+30:1800+30"]

1. d4 {[%emt 0:00:03]} Nf6 {[%emt 0:00:40]} 2. Nf3 {[%emt 0:00:04]} g6 {[%emt 0:00:31]} 3. Bg5 {[%emt 0:00:10]} Bg7 {[%emt 0:01:05]} 4. Nbd2 {[%emt 0:00:27]} d5 {[%emt 0:02:22]} 5. c3 {[%emt 0:00:35]} O-O {[%emt 0:01:58]} 6. e3 {[%emt 0:00:43]} c5 {[%emt 0:01:44]} 7. Be2 {[%emt 0:00:39]} b6 {[%emt 0:01:48]} 8. O-O {[%emt 0:00:13]} Nc6 {[%emt 0:01:37]} 9. Rb1 {[%emt 0:05:20]} Bf5 {[%emt 0:03:15]} 10. Rc1 {[%emt 0:00:22]} h6 {[%emt 0:01:55]} 11. Bh4 {[%emt 0:01:23]} Qd7 {[%emt 0:06:35]} 12. Bb5 {[%emt 0:06:01]} Qb7 {[%emt 0:08:28]} 13. Ba4 {[%emt 0:25:48]} Rfc8 {[%emt 0:24:19]} 14. Bc2 {[%emt 0:04:53]} Qd7 {[%emt 0:02:17]} 15. h3 {[%emt 0:06:04]} Bxc2 {[%emt 0:07:49]} 16. Qxc2 {[%emt 0:01:09]} Qf5 {[%emt 0:00:18]} 17. Qxf5 {[%emt 0:03:41]} gxf5 {[%emt 0:00:08]} 18. Bg3 {[%emt 0:03:34]} Ne4 {[%emt 0:02:11]} 19. Nxe4 {[%emt 0:02:25]} fxe4 {[%emt 0:00:22]} 20. Nd2 {[%emt 0:01:12]} cxd4 {[%emt 0:05:08]} 21. exd4 {[%emt 0:01:37]} h5 {[%emt 0:05:16]} 22. Rcd1 {[%emt 0:07:36]} Na5 {[%emt 0:01:45]} 23. Bf4 {[%emt 0:05:08]} Nc4 {[%emt 0:01:02]} 24. Nxc4 {[%emt 0:00:28]} Rxc4 {[%emt 0:00:21]} 25. f3 {[%emt 0:01:07]} f5 {[%emt 0:02:40]} 26. Rf2 {[%emt 0:05:12]} b5 {[%emt 0:01:41]} 27. Bg5 {[%emt 0:02:40]} b4 {[%emt 0:02:52]} 28. Bxe7 {[%emt 0:02:19]} bxc3 {[%emt 0:00:16]} 29. bxc3 {[%emt 0:00:35]} Rxc3 {[%emt 0:00:19]} 30. fxe4 {[%emt 0:00:47]} fxe4 {[%emt 0:00:31]} 31. Rf5 {[%emt 0:00:29]} Rd3 {[%emt 0:01:17]} 32. Rxd3 {[%emt 0:06:59]} exd3 {[%emt 0:00:07]} 33. Rf3 {[%emt 0:01:17]} Bxd4+ {[%emt 0:00:23]} 34. Kf1 {[%emt 0:01:02]} d2 {[%emt 0:04:39]} 35. Rd3 {[%emt 0:00:37]} Bc3 {[%emt 0:01:16]} 36. Bg5 {[%emt 0:01:00]} Rf8+ {[%emt 0:00:34]} 37. Kg1 {[%emt 0:00:54]} d1=Q+ {[%emt 0:05:39]} 38. Rxd1 {[%emt 0:00:08]} d4 {[%emt 0:00:08]} 39. Rd3 {[%emt 0:01:15]} 1/2-1/2

[Event "FIDE CB Open 2022"]
[Site "Ceske Budejovice"]
[Date "2022.07.04"]
[Round "4.52"]
[White "Almaini, Aishah Sarhan"]
[Black "Svoboda, Petr"]
[Result "1/2-1/2"]
[ECO "A57"]
[WhiteElo "1615"]
[BlackElo "2088"]
[Annotator "RC"]
[PlyCount "136"]
[EventDate "2022.07.01"]
[EventType "swiss"]
[EventCountry "CZE"]
[SourceTitle "playchess.com"]
[Source "ChessBase"]
[SourceQuality "1"]
[TimeControl "40/5400+30:1800+30"]

1. d4 {[%emt 0:00:45]} Nf6 {[%emt 0:00:06]} 2. c4 {[%emt 0:00:08]} c5 {[%emt 0:00:04]} 3. d5 {[%emt 0:00:07]} b5 {[%emt 0:00:05]} 4. a4 {[%emt 0:00:08]} Qa5+ {[%emt 0:00:18]} 5. Qd2 {[%emt 0:06:50]} Qxd2+ {[%emt 0:01:26]} 6. Nxd2 {[%emt 0:00:13]} bxc4 {[%emt 0:01:04]} 7. e4 {[%emt 0:00:16]} Ba6 {[%emt 0:02:33]} 8. f3 {[%emt 0:05:04]} c3 {[%emt 0:03:33]} 9. bxc3 {[%emt 0:02:32]} Bxf1 {[%emt 0:00:30]} 10. Kxf1 {[%emt 0:04:40]} e6 {[%emt 0:02:07]} 11. c4 {[%emt 0:06:01]} Na6 {[%emt 0:02:55]} 12. Ne2 {[%emt 0:05:45]} d6 {[%emt 0:03:15]} 13. Nc3 {[%emt 0:05:23]} Nb4 {[%emt 0:06:28]} 14. Rb1 {[%emt 0:11:59]} Be7 {[%emt 0:05:59]} 15. Ba3 {[%emt 0:03:57]} Nc2 {[%emt 0:08:34]} 16. Bb2 {[%emt 0:02:08]} Kd7 {[%emt 0:01:25]} 17. Kf2 {[%emt 0:04:33]} Rhb8 {[%emt 0:02:42]} 18. Rhc1 {[%emt 0:03:20]} Nb4 {[%emt 0:01:19]} 19. Ke2 {[%emt 0:00:36]} Ne8 {[%emt 0:04:02]} 20. Ba1 {[%emt 0:08:02]} h5 {[%emt 0:05:08]} 21. g3 {[%emt 0:01:40]} g5 {[%emt 0:04:34]} 22. h3 {[%emt 0:00:07]} Ng7 {[%emt 0:10:21]} 23. Rf1 {[%emt 0:04:30]} Nc2 {[%emt 0:06:37]} 24. Bb2 {[%emt 0:00:08]} Bf6 {[%emt 0:01:02]} 25. Rfc1 {[%emt 0:08:02]} Nb4 {[%emt 0:01:21]} 26. Ba1 {[%emt 0:01:40]} Be5 {[%emt 0:01:55]} 27. Nb5 {[%emt 0:02:40]} Bxa1 {[%emt 0:06:19]} 28. Rxa1 {[%emt 0:00:30]} exd5 {[%emt 0:00:19]} 29. cxd5 {[%emt 0:05:08]} a6 {[%emt 0:00:34]} 30. Nc3 {[%emt 0:00:06]} Re8 {[%emt 0:00:40]} 31. Nc4 {[%emt 0:00:46]} Kc7 {[%emt 0:02:24]} 32. Kd2 {[%emt 0:01:30]} f5 {[%emt 0:07:19]} 33. Re1 {[%emt 0:01:05]} g4 {[%emt 0:04:17]} 34. hxg4 {[%emt 0:02:35]} fxe4 {[%emt 0:00:27]} 35. fxe4 {[%emt 0:00:12]} hxg4 {[%emt 0:00:14]} 36. Rh1 {[%emt 0:01:53]} Rh8 {[%emt 0:00:33]} 37. Raf1 {[%emt 0:00:24]} Raf8 {[%emt 0:01:38]} 38. Rxh8 {[%emt 0:00:25]} Rxf1 {[%emt 0:00:21]} 39. Rh7 {[%emt 0:00:08]} Rf2+ {[%emt 0:01:05]} 40. Ne2 {[%emt 0:00:12]} Rf7 {[%emt 0:00:12]} 41. Nf4 {[%emt 0:33:20]} Rd7 {[%emt 0:31:50]} 42. Rh4 {[%emt 0:00:00]} Kd8 {[%emt 0:00:00]} 43. Rxg4 {[%emt 0:00:00]} Ne8 {[%emt 0:00:00]} 44. Ne6+ {[%emt 0:00:00]} Ke7 {[%emt 0:00:00]} 45. Rf4 {[%emt 0:00:00]} Nf6 {[%emt 0:00:00]} 46. g4 {[%emt 0:00:00]} Nbxd5 {[%emt 0:00:00]} 47. exd5 {[%emt 0:00:00]} Nxd5 {[%emt 0:00:00]} 48. Re4 {[%emt 0:00:00]} Nf6 {[%emt 0:00:00]} 49. Re1 {[%emt 0:00:00]} Kf7 {[%emt 0:00:00]} 50. g5 {[%emt 0:00:00]} Ng4 {[%emt 0:00:00]} 51. g6+ {[%emt 0:00:00]} Kf6 {[%emt 0:00:00]} 52. g7 {[%emt 0:00:00]} Nh6 {[%emt 0:00:00]} 53. Rh1 {[%emt 0:00:00]} Ng8 {[%emt 0:00:00]} 54. Nb6 {[%emt 0:05:42]} Rb7 {[%emt 0:00:00]} 55. Rh8 {[%emt 0:00:13]} Kxe6 {[%emt 0:02:18]} 56. Rxg8 {[%emt 0:00:06]} Kf6 {[%emt 0:00:11]} 57. Nd5+ {[%emt 0:01:06]} Kg6 {[%emt 0:00:44]} 58. Rd8 {[%emt 0:01:24]} Kxg7 {[%emt 0:01:15]} 59. Rxd6 {[%emt 0:00:01]} Kf7 {[%emt 0:00:32]} 60. Rxa6 {[%emt 0:00:08]} Rd7 {[%emt 0:00:10]} 61. Kc3 {[%emt 0:00:33]} Rxd5 {[%emt 0:00:19]} 62. Kc4 {[%emt 0:00:04]} Rh5 {[%emt 0:01:20]} 63. Rc6 {[%emt 0:00:49]} Rh4+ {[%emt 0:00:55]} 64. Kb5 {[%emt 0:00:09]} Rb4+ {[%emt 0:00:51]} 65. Ka5 {[%emt 0:01:27]} Rc4 {[%emt 0:00:26]} 66. Rc7+ {[%emt 0:00:16]} Ke6 {[%emt 0:00:27]} 67. Kb5 {[%emt 0:00:58]} Rb4+ {[%emt 0:00:14]} 68. Kxc5 {[%emt 0:00:47]} Rxa4 {[%emt 0:00:09]} 1/2-1/2

[Event "FIDE CB Open 2022"]
[Site "Ceske Budejovice"]
[Date "2022.07.04"]
[Round "4.53"]
[White "Kukacka, Ladislav"]
[Black "Svoboda, Daniel"]
[Result "0-1"]
[ECO "A08"]
[WhiteElo "1555"]
[BlackElo "1679"]
[Annotator "NA RC"]
[PlyCount "42"]
[EventDate "2022.07.01"]
[EventType "swiss"]
[EventCountry "CZE"]
[SourceTitle "playchess.com"]
[Source "ChessBase"]
[SourceQuality "1"]
[TimeControl "40/5400+30:1800+30"]

1. Nf3 {[%emt 0:00:29]} c5 {[%emt 0:00:07]} 2. g3 {[%emt 0:00:55]} d5 {[%emt 0:01:11]} 3. Bg2 {[%emt 0:00:32]} Nf6 {[%emt 0:00:31]} 4. O-O {[%emt 0:00:42]} g6 {[%emt 0:00:48]} 5. d3 {[%emt 0:02:06]} Bg7 {[%emt 0:00:36]} 6. Nbd2 {[%emt 0:01:43]} O-O {[%emt 0:02:17]} 7. c4 {[%emt 0:01:18]} Nc6 {[%emt 0:02:44]} 8. e3 {[%emt 0:01:17]} e5 {[%emt 0:11:30]} 9. Qc2 {[%emt 0:03:53]} Nb4 {[%emt 0:05:29]} 10. Qb1 {[%emt 0:00:45]} dxc4 {[%emt 0:15:30]} 11. dxc4 {[%emt 0:02:40]} Nc6 {[%emt 0:08:39]} 12. e4 {[%emt 0:03:34]} b6 {[%emt 0:04:50]} 13. Nxe5 {[%emt 0:06:53]} Nxe5 {[%emt 0:00:46]} 14. f4 {[%emt 0:00:28]} Neg4 {[%emt 0:05:45]} 15. e5 {[%emt 0:01:10]} Bf5 {[%emt 0:01:23]} 16. exf6 {[%emt 0:01:46]} Bxb1 {[%emt 0:00:30]} 17. fxg7 {[%emt 0:01:02]} Re8 {[%emt 0:08:47]} 18. Rxb1 {[%emt 0:01:28]} Qd4+ {[%emt 0:00:47]} 19. Kh1 {[%emt 0:02:23]} Nf2+ {[%emt 0:00:39]} 20. Rxf2 {[%emt 0:02:01]} Qxf2 {[%emt 0:00:13]} 21. h4 {[%emt 0:06:29]} Re2 {[%emt 0:01:09]} 0-1

[Event "FIDE CB Open 2022"]
[Site "Ceske Budejovice"]
[Date "2022.07.04"]
[Round "4.54"]
[White "Jodas, Daniel"]
[Black "Krejci, Vera Marie"]
[Result "0-1"]
[ECO "C01"]
[WhiteElo "1614"]
[BlackElo "1554"]
[Annotator "NA RC"]
[PlyCount "82"]
[EventDate "2022.07.01"]
[EventType "swiss"]
[EventCountry "CZE"]
[SourceTitle "playchess.com"]
[Source "ChessBase"]
[SourceQuality "1"]
[TimeControl "40/5400+30:1800+30"]

1. e4 {[%emt 0:00:03]} e6 {[%emt 0:00:06]} 2. d4 {[%emt 0:00:08]} d5 {[%emt 0:00:05]} 3. exd5 {[%emt 0:00:24]} exd5 {[%emt 0:00:09]} 4. Nf3 {[%emt 0:00:10]} Bd6 {[%emt 0:00:21]} 5. Bd3 {[%emt 0:00:06]} Ne7 {[%emt 0:00:18]} 6. O-O {[%emt 0:00:16]} O-O {[%emt 0:00:48]} 7. c3 {[%emt 0:02:29]} Bf5 {[%emt 0:02:45]} 8. Bg5 {[%emt 0:05:56]} Bxd3 {[%emt 0:03:33]} 9. Qxd3 {[%emt 0:00:08]} c6 {[%emt 0:02:05]} 10. Nbd2 {[%emt 0:01:03]} h6 {[%emt 0:02:49]} 11. Bh4 {[%emt 0:00:36]} Qc7 {[%emt 0:00:34]} 12. Rfe1 {[%emt 0:00:31]} Ng6 {[%emt 0:00:29]} 13. Bg3 {[%emt 0:01:12]} Nd7 {[%emt 0:00:43]} 14. Bxd6 {[%emt 0:01:25]} Qxd6 {[%emt 0:00:06]} 15. Qf5 {[%emt 0:04:28]} Rae8 {[%emt 0:11:13]} 16. h4 {[%emt 0:03:41]} Nf6 {[%emt 0:06:18]} 17. g3 {[%emt 0:06:28]} Qd7 {[%emt 0:06:15]} 18. Qxd7 {[%emt 0:05:04]} Nxd7 {[%emt 0:00:03]} 19. h5 {[%emt 0:03:17]} Ne7 {[%emt 0:02:25]} 20. g4 {[%emt 0:02:43]} Nc8 {[%emt 0:04:19]} 21. Ne5 {[%emt 0:02:40]} Nf6 {[%emt 0:01:44]} 22. Re2 {[%emt 0:02:01]} Nxg4 {[%emt 0:03:46]} 23. Rae1 {[%emt 0:01:34]} Nf6 {[%emt 0:00:45]} 24. Nb3 {[%emt 0:08:11]} Nxh5 {[%emt 0:02:53]} 25. Nc5 {[%emt 0:02:23]} Re7 {[%emt 0:04:25]} 26. Ned7 {[%emt 0:06:33]} Rxe2 {[%emt 0:00:17]} 27. Rxe2 {[%emt 0:00:06]} Rd8 {[%emt 0:00:07]} 28. Ne5 {[%emt 0:01:59]} Nd6 {[%emt 0:02:33]} 29. Re3 {[%emt 0:03:01]} Nf6 {[%emt 0:08:25]} 30. f3 {[%emt 0:03:13]} Nh7 {[%emt 0:06:35]} 31. a4 {[%emt 0:09:33]} Nf8 {[%emt 0:02:00]} 32. a5 {[%emt 0:00:58]} a6 {[%emt 0:00:26]} 33. b4 {[%emt 0:01:42]} f6 {[%emt 0:04:42]} 34. Nxc6 {[%emt 0:01:28]} bxc6 {[%emt 0:02:29]} 35. Nxa6 {[%emt 0:00:05]} Kf7 {[%emt 0:03:10]} 36. Re1 {[%emt 0:03:13]} Nb5 {[%emt 0:01:46]} 37. Nc5 {[%emt 0:00:48]} Nd7 {[%emt 0:04:04]} 38. Nb7 {[%emt 0:00:17]} Rb8 {[%emt 0:01:18]} 39. a6 {[%emt 0:00:18]} Ra8 {[%emt 0:00:37]} 40. Ra1 {[%emt 0:00:28]} Nb8 {[%emt 0:01:17]} 41. a7 {[%emt 0:31:14]} Rxa7 {[%emt 0:30:28]} 0-1

[Event "FIDE CB Open 2022"]
[Site "Ceske Budejovice"]
[Date "2022.07.04"]
[Round "4.55"]
[White "Smola, David"]
[Black "Huemer, Gerald"]
[Result "1-0"]
[ECO "B84"]
[WhiteElo "1609"]
[BlackElo "1627"]
[Annotator "NA RC"]
[PlyCount "43"]
[EventDate "2022.07.01"]
[EventType "swiss"]
[EventCountry "CZE"]
[SourceTitle "playchess.com"]
[Source "ChessBase"]
[SourceQuality "1"]
[TimeControl "40/5400+30:1800+30"]

1. e4 {[%emt 0:00:08]} c5 {[%emt 0:00:06]} 2. Nf3 {[%emt 0:00:20]} d6 {[%emt 0:00:09]} 3. d4 {[%emt 0:00:26]} cxd4 {[%emt 0:00:11]} 4. Nxd4 {[%emt 0:00:11]} a6 {[%emt 0:00:02]} 5. Be3 {[%emt 0:01:03]} Nf6 {[%emt 0:00:14]} 6. Nc3 {[%emt 0:01:06]} e6 {[%emt 0:00:09]} 7. Be2 {[%emt 0:02:21]} Be7 {[%emt 0:03:47]} 8. Qd2 {[%emt 0:01:11]} Nbd7 {[%emt 0:00:23]} 9. O-O {[%emt 0:01:50]} O-O {[%emt 0:00:08]} 10. f3 {[%emt 0:01:13]} b6 {[%emt 0:00:25]} 11. Nc6 {[%emt 0:04:10]} Qe8 {[%emt 0:01:02]} 12. Rad1 {[%emt 0:01:50]} d5 {[%emt 0:12:45]} 13. exd5 {[%emt 0:02:39]} exd5 {[%emt 0:00:37]} 14. Nxe7+ {[%emt 0:02:10]} Qxe7 {[%emt 0:00:04]} 15. Rfe1 {[%emt 0:02:28]} Bb7 {[%emt 0:00:42]} 16. Bd3 {[%emt 0:03:50]} Nc5 {[%emt 0:01:18]} 17. Qf2 {[%emt 0:02:46]} Rac8 {[%emt 0:09:19]} 18. Bg5 {[%emt 0:03:46]} Qd6 {[%emt 0:05:42]} 19. Bf5 {[%emt 0:02:50]} Nfd7 {[%emt 0:05:24]} 20. Be7 {[%emt 0:02:57]} Qf4 {[%emt 0:04:24]} 21. Bxd7 {[%emt 0:02:48]} Nxd7 {[%emt 0:00:17]} 22. Bxf8 {[%emt 0:00:29]} 1-0